[Event "82nd Tata Steel Challengers 2020"]
[Site "Wijk aan Zee"]
[Date "2020.01.19"]
[Round "8.4"]
[White "Ganguly, Surya Shekhar"]
[Black "L'Ami, Erwin"]
[Result "1/2-1/2"]
[ECO "D35"]
[WhiteElo "2636"]
[BlackElo "2606"]
[Annotator "RC"]
[PlyCount "97"]
[EventDate "2020.01.11"]
[EventType "tourn"]
[EventCountry "NED"]
[SourceTitle "playchess.com"]
[Source "ChessBase"]
[SourceQuality "1"]
[TimeControl "40/6000+30:20/3000+30:900+30"]

1. c4 {[%emt 0:00:00]} e6 {[%emt 0:00:00]} 2. Nc3 {[%emt 0:00:16]} d5 {[%emt 0:00:00]} 3. d4 {[%emt 0:00:29]} Nf6 {[%emt 0:01:03]} 4. cxd5 {[%emt 0:00:49]} exd5 {[%emt 0:00:28]} 5. Bg5 {[%emt 0:00:32]} c6 {[%emt 0:00:10]} 6. e3 {[%emt 0:00:08]} Bf5 {[%emt 0:00:39]} 7. Qf3 {[%emt 0:00:48]} Bg6 {[%emt 0:00:09]} 8. Bxf6 {[%emt 0:00:05]} Qxf6 {[%emt 0:00:10]} 9. Qxf6 {[%emt 0:00:03]} gxf6 {[%emt 0:00:11]} 10. Nf3 {[%emt 0:08:59]} Be7 {[%emt 0:03:36]} 11. Nh4 {[%emt 0:03:35]} Nd7 {[%emt 0:02:40]} 12. Ne2 {[%emt 0:00:34]} f5 {[%emt 0:00:20]} 13. g3 {[%emt 0:00:08]} Bxh4 {[%emt 0:00:28]} 14. gxh4 {[%emt 0:00:05]} Nf6 {[%emt 0:01:48]} 15. Nf4 {[%emt 0:08:50]} Nh5 {[%emt 0:04:21]} 16. Be2 {[%emt 0:01:39]} Nxf4 {[%emt 0:01:34]} 17. exf4 {[%emt 0:00:04]} h5 {[%emt 0:02:47]} 18. Kd2 {[%emt 0:02:40]} Kd7 {[%emt 0:09:06]} 19. Bd3 {[%emt 0:19:00]} Rae8 {[%emt 0:16:52]} 20. Rhg1 {[%emt 0:07:48]} Kd6 {[%emt 0:01:37]} 21. b4 {[%emt 0:04:48]} Re7 {[%emt 0:10:45]} 22. a4 {[%emt 0:01:53]} Rhe8 {[%emt 0:09:33]} 23. Ra3 {[%emt 0:01:41]} b6 {[%emt 0:09:38]} 24. Rc3 {[%emt 0:04:12]} Rc7 {[%emt 0:03:27]} 25. Rgc1 {[%emt 0:06:03]} Ree7 {[%emt 0:01:32]} 26. a5 {[%emt 0:05:37]} Re8 {[%emt 0:14:12]} 27. axb6 {[%emt 0:04:51]} axb6 {[%emt 0:00:06]} 28. Ra1 {[%emt 0:00:53]} b5 {[%emt 0:02:04]} 29. Ra6 {[%emt 0:04:28]} Kd7 {[%emt 0:00:32]} 30. Rc5 {[%emt 0:02:56]} Re6 {[%emt 0:04:25]} 31. Ra8 {[%emt 0:01:47]} Rb7 {[%emt 0:00:22]} 32. Rc1 {[%emt 0:02:44]} Ke7 {[%emt 0:01:29]} 33. Rca1 {[%emt 0:02:04]} Kd7 {[%emt 0:01:32]} 34. Rf8 {[%emt 0:02:27]} Ke7 {[%emt 0:01:52]} 35. Rh8 {[%emt 0:03:53]} Kf6 {[%emt 0:01:51]} 36. Rc8 {[%emt 0:02:58]} Rb6 {[%emt 0:01:01]} 37. Rd8 {[%emt 0:04:04]} Re7 {[%emt 0:00:30]} 38. Raa8 {[%emt 0:00:59]} Re6 {[%emt 0:02:07]} 39. Ra7 {[%emt 0:01:20]} Kg7 {[%emt 0:01:50]} 40. Rdd7 {[%emt 0:00:00]} Kf6 {[%emt 0:00:00]} 41. Bc2 {[%emt 0:08:56]} Re8 {[%emt 0:01:30]} 42. Ra3 {[%emt 0:03:40]} Re6 {[%emt 0:03:11]} 43. Rd8 {[%emt 0:00:47]} Re7 {[%emt 0:01:11]} 44. Rda8 {[%emt 0:00:41]} Re6 {[%emt 0:00:58]} 45. Rg3 {[%emt 0:04:58]} Re7 {[%emt 0:02:24]} 46. Rg5 {[%emt 0:14:41]} Re6 {[%emt 0:01:29]} 47. Ra7 {[%emt 0:00:11]} Re8 {[%emt 0:00:30]} 48. Ra3 {[%emt 0:03:49]} Re6 {[%emt 0:00:32]} 49. Bd3 {[%emt 0:00:07] Ke5} 1/2-1/2

[Event "82nd Tata Steel Challengers 2020"]
[Site "Wijk aan Zee"]
[Date "2020.01.19"]
[Round "8.7"]
[White "Smeets, Jan"]
[Black "Keymer, Vincent"]
[Result "0-1"]
[ECO "B55"]
[WhiteElo "2585"]
[BlackElo "2527"]
[Annotator "ChessBase"]
[PlyCount "94"]
[EventDate "2020.01.11"]
[EventType "tourn"]
[EventCountry "NED"]
[SourceTitle "playchess.com"]
[Source "ChessBase"]
[SourceQuality "1"]
[TimeControl "40/6000+30:20/3000+30:900+30"]

1. e4 {[%emt 0:00:00]} c5 {[%emt 0:00:00]} 2. Nf3 {[%emt 0:00:00]} d6 {[%emt 0:00:00]} 3. d4 {[%emt 0:00:00]} cxd4 {[%emt 0:00:00]} 4. Nxd4 {[%emt 0:00:00]} Nf6 {[%emt 0:00:00]} 5. f3 {[%emt 0:00:00]} e5 {[%emt 0:00:00]} 6. Nb3 {[%emt 0:00:13]} d5 {[%emt 0:00:00]} 7. Bg5 {[%emt 0:02:44]} Be6 {[%emt 0:00:01]} 8. Bxf6 {[%emt 0:01:20]} gxf6 {[%emt 0:00:06]} 9. exd5 {[%emt 0:00:30]} Qxd5 {[%emt 0:00:16]} 10. Qxd5 {[%emt 0:00:12]} Bxd5 {[%emt 0:00:04]} 11. Nc3 {[%emt 0:00:07]} Be6 {[%emt 0:00:19]} 12. O-O-O {[%emt 0:00:31]} Nc6 {[%emt 0:00:22]} 13. Bb5 {[%emt 0:00:53]} Rc8 {[%emt 0:00:11]} 14. Nd5 {[%emt 0:02:51]} f5 {[%emt 0:00:10]} 15. Nf6+ {[%emt 0:02:23]} Ke7 {[%emt 0:00:05]} 16. Nd5+ {[%emt 0:00:07]} Ke8 {[%emt 0:04:20]} 17. Ba4 {[%emt 0:08:01]} Bh6+ {[%emt 0:05:14]} 18. Kb1 {[%emt 0:00:07]} Kf8 {[%emt 0:01:15]} 19. Nc5 {[%emt 0:02:45]} Nd4 {[%emt 0:05:37]} 20. Nxe6+ {[%emt 0:03:37]} fxe6 {[%emt 0:02:48]} 21. Nf6 {[%emt 0:02:30]} Ke7 {[%emt 0:14:42]} 22. Nd7 {[%emt 0:00:55]} Rhd8 {[%emt 0:00:11]} 23. Nxe5 {[%emt 0:35:56]} Bg7 {[%emt 0:04:52]} 24. f4 {[%emt 0:02:09]} Bxe5 {[%emt 0:02:12]} 25. fxe5 {[%emt 0:00:06]} Rc4 {[%emt 0:08:36]} 26. b3 {[%emt 0:26:56]} Rc7 {[%emt 0:26:35]} 27. Rd3 {[%emt 0:15:07]} Ne2 {[%emt 0:08:05]} 28. Rh3 {[%emt 0:00:20]} Kf8 {[%emt 0:00:59]} 29. Kb2 {[%emt 0:00:10]} Nf4 {[%emt 0:07:21]} 30. Rg3 {[%emt 0:03:41]} Rd4 {[%emt 0:02:25]} 31. a3 {[%emt 0:00:42]} Ng6 {[%emt 0:03:51]} 32. Re1 {[%emt 0:00:25]} Rd5 {[%emt 0:02:49]} 33. b4 {[%emt 0:00:30]} Rxe5 {[%emt 0:02:26]} 34. Rd1 {[%emt 0:00:33]} Re2 {[%emt 0:00:58]} 35. Rd8+ {[%emt 0:00:29]} Ke7 {[%emt 0:01:16]} 36. Ra8 {[%emt 0:00:08]} a6 {[%emt 0:00:49]} 37. h4 {[%emt 0:00:10]} Kf6 {[%emt 0:02:56]} 38. h5 {[%emt 0:00:35]} Nf4 {[%emt 0:00:29]} 39. Rf8+ {[%emt 0:00:53]} Ke5 {[%emt 0:02:12]} 40. h6 {[%emt 0:00:00]} Rxg2 {[%emt 0:00:00]} 41. Rc3 {[%emt 0:23:46]} Rxc3 {[%emt 0:08:55]} 42. Kxc3 {[%emt 0:00:05]} Nd5+ {[%emt 0:01:55]} 43. Kd3 {[%emt 0:02:19]} f4 {[%emt 0:02:28]} 44. Rf7 {[%emt 0:00:25]} Nf6 {[%emt 0:08:07]} 45. Rxb7 {[%emt 0:03:09]} Ne4 {[%emt 0:01:44]} 46. Rg7 {[%emt 0:13:33]} Rd2+ {[%emt 0:02:14]} 47. Kc4 {[%emt 0:00:05]} f3 {[%emt 0:00:15] Kd4+} 0-1

[Event "82nd Tata Steel Challengers 2020"]
[Site "Wijk aan Zee"]
[Date "2020.01.25"]
[Round "12.6"]
[White "Saduakassova, Dinara"]
[Black "Van Foreest, Lucas"]
[Result "0-1"]
[ECO "A40"]
[WhiteElo "2519"]
[BlackElo "2523"]
[Annotator "ChessBase"]
[PlyCount "80"]
[EventDate "2020.01.11"]
[EventType "tourn"]
[EventCountry "NED"]
[SourceTitle "playchess.com"]
[Source "ChessBase"]
[SourceQuality "1"]
[TimeControl "40/6000+30:20/3000+30:900+30"]

1. d4 {[%emt 0:00:00]} g6 {[%emt 0:00:00]} 2. Nf3 {[%emt 0:01:06]} Bg7 {[%emt 0:00:00]} 3. g3 {[%emt 0:00:57]} c5 {[%emt 0:00:17]} 4. c3 {[%emt 0:09:32]} cxd4 {[%emt 0:04:01]} 5. cxd4 {[%emt 0:00:15]} b6 {[%emt 0:00:19]} 6. Bg2 {[%emt 0:00:45]} Bb7 {[%emt 0:00:14]} 7. Nc3 {[%emt 0:01:10]} Nf6 {[%emt 0:00:15]} 8. O-O {[%emt 0:00:42]} O-O {[%emt 0:00:15]} 9. d5 {[%emt 0:09:32]} Na6 {[%emt 0:13:09]} 10. Nd4 {[%emt 0:03:22]} Nc7 {[%emt 0:18:49]} 11. d6 {[%emt 0:07:39]} Ncd5 {[%emt 0:00:08]} 12. Nxd5 {[%emt 0:01:29]} Bxd5 {[%emt 0:07:56]} 13. Bxd5 {[%emt 0:14:54]} Nxd5 {[%emt 0:00:08]} 14. Bg5 {[%emt 0:03:10]} h6 {[%emt 0:02:09]} 15. dxe7 {[%emt 0:01:00]} Nxe7 {[%emt 0:01:20]} 16. Bf4 {[%emt 0:00:15]} Nc6 {[%emt 0:03:16]} 17. Nb5 {[%emt 0:01:20]} Bxb2 {[%emt 0:05:58]} 18. Bxh6 {[%emt 0:04:05]} Re8 {[%emt 0:00:25]} 19. Rb1 {[%emt 0:07:14]} Be5 {[%emt 0:00:52]} 20. Qd2 {[%emt 0:03:11]} Qf6 {[%emt 0:04:35]} 21. Bg5 {[%emt 0:03:40]} Qf5 {[%emt 0:01:07]} 22. Be3 {[%emt 0:01:36]} Rac8 {[%emt 0:03:08]} 23. Rfd1 {[%emt 0:04:37]} a6 {[%emt 0:01:43]} 24. Nd6 {[%emt 0:03:10]} Bxd6 {[%emt 0:00:04]} 25. Qxd6 {[%emt 0:00:08]} Ne5 {[%emt 0:00:02]} 26. Bf4 {[%emt 0:01:46]} Ng4 {[%emt 0:02:51]} 27. Rb2 {[%emt 0:04:49]} g5 {[%emt 0:03:40]} 28. Qd5 {[%emt 0:03:22]} Re5 {[%emt 0:01:33]} 29. Qb7 {[%emt 0:01:50]} Rce8 {[%emt 0:01:13]} 30. f3 {[%emt 0:09:45]} Rxe2 {[%emt 0:10:21]} 31. Qxb6 {[%emt 0:02:23]} Nxh2 {[%emt 0:02:34]} 32. Rxe2 {[%emt 0:01:23]} Rxe2 {[%emt 0:00:06]} 33. Qxa6 {[%emt 0:01:51]} Nxf3+ {[%emt 0:00:23]} 34. Kf1 {[%emt 0:00:03]} Re8 {[%emt 0:02:26]} 35. Qd3 {[%emt 0:01:05]} Qh3+ {[%emt 0:00:52]} 36. Kf2 {[%emt 0:00:04]} g4 {[%emt 0:00:56]} 37. Be3 {[%emt 0:00:23]} Qh2+ {[%emt 0:00:05]} 38. Kf1 {[%emt 0:00:03]} Qxg3 {[%emt 0:00:05]} 39. Rc1 {[%emt 0:00:36]} Nh4 {[%emt 0:02:09]} 40. Rc3 {[%emt 0:00:00]} Qf3+ {[%emt 0:00:00]} 0-1